{"text_format":"1","workbook":"xlsx","n_sheets":2,"sheets":["Navodila in nameščanje","12. sep"],"not_rendered":{"charts":0,"images":0,"macros":1,"external_links":0,"defined_names":13,"comments":0,"pivot_tables":0},"unopened":[],"bounds":{"document_bytes":16777216,"sheet_cells":100000,"rows_first":2000,"rows_last":500,"rows_between":2000,"halvings":0,"cell_chars":16384,"cell_head_chars":4096},"cells_cut":0,"cells_raw":0,"read":"whole","date_system":"1900"}

{"sheet":"Navodila in nameščanje","index":0,"n_rows":23,"n_cols":9,"rows_kept":23,"cut":false,"hidden":false,"merged":[[3,2,3,4],[5,2,5,4],[7,2,7,4],[9,2,9,4],[3,7,3,8],[5,7,5,8],[7,7,7,8],[9,7,9,8],[11,7,11,8],[4,7,4,8],[6,7,6,8],[8,7,8,8],[10,7,10,8]]}
[]
[null,"Navodila in nameščanje"]
[]
[null,1,"Spodaj v tabeli »Razredi«, vnesite imena razredov, ki jih želite spremljati na tem urniku.",null,null,null,5,"Vnesite začetni datum urnika v celico A5."]
[]
[null,2,"V tabeli »Dejavnosti«, tudi spodaj, prilagodite vzorčne dejavnosti, da bodo ustrezale vašim potrebam. ",null,null,null,6,"V vrstici 4 uporabite spustni seznam, če želite predmete dodati urniku. "]
[]
[null,3,"V celici I14, nastavite število vrstic, ki jih želite uporabiti za dejavnosti vsakodnevne domače naloge.",null,null,null,7,"Pod vsakim predmetom dodajte dodeljene naloge v stolpec Dodeljene naloge."]
[]
[null,4,"Na listu urnika, npr. 12. sept., dokončajte korake 5–9.",null,null,null,8,"V stolpcu ur, ki je označen z ikono ure, ocenite skupno število ur, ki jih boste potrebovali za vsako dodeljeno nalogo."]
[]
[null,null,null,null,null,null,9,"Ko je naloga končana, dvokliknite stolpec »opravljeno«, ki je označen s kljukico ob dodeljeni nalogi."]
[]
[null,null,"Razredi",null,"Dejavnosti",null,null,"Število vrstic za vsak dan:",5]
[null,null,"Matematika 101",null,"Razprava"]
[null,null,"Angleščina 105",null,"Laboratorij"]
[null,null,"Francoščina 103",null,"Predavanje"]
[null,null,"Znanost 101",null,"Preskus"]
[null,null,"Zgodovina 101",null,"Branje"]
[null,null,null,null,"Odsev"]
[null,null,null,null,"Raziskovalna naloga"]
[null,null,null,null,"Naloga pregleda"]
[null,null,null,null,"Študij"]

{"sheet":"12. sep","index":1,"n_rows":103,"n_cols":24,"rows_kept":103,"cut":false,"hidden":false,"merged":[]}
[]
[null,"Domača naloga"]
[]
[null,"Vnesite začetni datum","Skupaj"," Razred:",null,"Matematika 101"," Razred:",null,"Angleščina 105"," Razred:",null,"Francoščina 103"," Razred:",null,"Znanost 101"," Razred:",null,null," Razred:",null,null," Razred:"]
[null,"2011-09-12",null,null,null,"DODELJENA NALOGA",null,null,"DODELJENA NALOGA",null,null,"DODELJENA NALOGA",null,null,"DODELJENA NALOGA",null,null,"DODELJENA NALOGA",null,null,"DODELJENA NALOGA",null,null,"DODELJENA NALOGA"]
[]
[null,{"$f":"UrnikDan","v":"2011-09-12"},{"$f":"SkupnoŠteviloDnevnihUr","v":6.5},1,1.5,"Branje",1,2,"Študij",null,1,"Branje",1,1,"Preskus"]
[null,{"$f":"UrnikDan","v":""},{"$f":"SkupnoŠteviloDnevnihUr","v":""},1,1,"Naloga pregleda"]
[null,{"$f":"UrnikDan","v":""},{"$f":"SkupnoŠteviloDnevnihUr","v":""}]
[null,{"$f":"UrnikDan","v":""},{"$f":"SkupnoŠteviloDnevnihUr","v":""}]
[null,{"$f":"UrnikDan","v":""},{"$f":"SkupnoŠteviloDnevnihUr","v":""}]
[null,{"$f":"UrnikDan","v":"2011-09-13"},{"$f":"SkupnoŠteviloDnevnihUr","v":0}]
[null,{"$f":"UrnikDan","v":""},{"$f":"SkupnoŠteviloDnevnihUr","v":""}]
[null,{"$f":"UrnikDan","v":""},{"$f":"SkupnoŠteviloDnevnihUr","v":""}]
[null,{"$f":"UrnikDan","v":""},{"$f":"SkupnoŠteviloDnevnihUr","v":""}]
[null,{"$f":"UrnikDan","v":""},{"$f":"SkupnoŠteviloDnevnihUr","v":""}]
[null,{"$f":"UrnikDan","v":"2011-09-14"},{"$f":"SkupnoŠteviloDnevnihUr","v":0}]
[null,{"$f":"UrnikDan","v":""},{"$f":"SkupnoŠteviloDnevnihUr","v":""}]
[null,{"$f":"UrnikDan","v":""},{"$f":"SkupnoŠteviloDnevnihUr","v":""}]
[null,{"$f":"UrnikDan","v":""},{"$f":"SkupnoŠteviloDnevnihUr","v":""}]
[null,{"$f":"UrnikDan","v":""},{"$f":"SkupnoŠteviloDnevnihUr","v":""}]
[null,{"$f":"UrnikDan","v":"2011-09-15"},{"$f":"SkupnoŠteviloDnevnihUr","v":0}]
[null,{"$f":"UrnikDan","v":""},{"$f":"SkupnoŠteviloDnevnihUr","v":""}]
[null,{"$f":"UrnikDan","v":""},{"$f":"SkupnoŠteviloDnevnihUr","v":""}]
[null,{"$f":"UrnikDan","v":""},{"$f":"SkupnoŠteviloDnevnihUr","v":""}]
[null,{"$f":"UrnikDan","v":""},{"$f":"SkupnoŠteviloDnevnihUr","v":""}]
[null,{"$f":"UrnikDan","v":"2011-09-16"},{"$f":"SkupnoŠteviloDnevnihUr","v":0}]
[null,{"$f":"UrnikDan","v":""},{"$f":"SkupnoŠteviloDnevnihUr","v":""}]
[null,{"$f":"UrnikDan","v":""},{"$f":"SkupnoŠteviloDnevnihUr","v":""}]
[null,{"$f":"UrnikDan","v":""},{"$f":"SkupnoŠteviloDnevnihUr","v":""}]
[null,{"$f":"UrnikDan","v":""},{"$f":"SkupnoŠteviloDnevnihUr","v":""}]
[null,{"$f":"UrnikDan","v":"2011-09-17"},{"$f":"SkupnoŠteviloDnevnihUr","v":0}]
[null,{"$f":"UrnikDan","v":""},{"$f":"SkupnoŠteviloDnevnihUr","v":""}]
[null,{"$f":"UrnikDan","v":""},{"$f":"SkupnoŠteviloDnevnihUr","v":""}]
[null,{"$f":"UrnikDan","v":""},{"$f":"SkupnoŠteviloDnevnihUr","v":""}]
[null,{"$f":"UrnikDan","v":""},{"$f":"SkupnoŠteviloDnevnihUr","v":""}]
[null,{"$f":"UrnikDan","v":"2011-09-18"},{"$f":"SkupnoŠteviloDnevnihUr","v":0}]
[null,{"$f":"UrnikDan","v":""},{"$f":"SkupnoŠteviloDnevnihUr","v":""}]
[null,{"$f":"UrnikDan","v":""},{"$f":"SkupnoŠteviloDnevnihUr","v":""}]
[null,{"$f":"UrnikDan","v":""},{"$f":"SkupnoŠteviloDnevnihUr","v":""}]
[null,{"$f":"UrnikDan","v":""},{"$f":"SkupnoŠteviloDnevnihUr","v":""}]
[null,{"$f":"UrnikDan","v":""},{"$f":"SkupnoŠteviloDnevnihUr","v":""}]
[null,{"$f":"UrnikDan","v":""},{"$f":"SkupnoŠteviloDnevnihUr","v":""}]
[null,{"$f":"UrnikDan","v":""},{"$f":"SkupnoŠteviloDnevnihUr","v":""}]
[null,{"$f":"UrnikDan","v":""},{"$f":"SkupnoŠteviloDnevnihUr","v":""}]
[null,{"$f":"UrnikDan","v":""},{"$f":"SkupnoŠteviloDnevnihUr","v":""}]
[null,{"$f":"UrnikDan","v":""},{"$f":"SkupnoŠteviloDnevnihUr","v":""}]
[null,{"$f":"UrnikDan","v":""},{"$f":"SkupnoŠteviloDnevnihUr","v":""}]
[null,{"$f":"UrnikDan","v":""},{"$f":"SkupnoŠteviloDnevnihUr","v":""}]
[null,{"$f":"UrnikDan","v":""},{"$f":"SkupnoŠteviloDnevnihUr","v":""}]
[null,{"$f":"UrnikDan","v":""},{"$f":"SkupnoŠteviloDnevnihUr","v":""}]
[null,{"$f":"UrnikDan","v":""},{"$f":"SkupnoŠteviloDnevnihUr","v":""}]
[null,{"$f":"UrnikDan","v":""},{"$f":"SkupnoŠteviloDnevnihUr","v":""}]
[null,{"$f":"UrnikDan","v":""},{"$f":"SkupnoŠteviloDnevnihUr","v":""}]
[null,{"$f":"UrnikDan","v":""},{"$f":"SkupnoŠteviloDnevnihUr","v":""}]
[null,{"$f":"UrnikDan","v":""},{"$f":"SkupnoŠteviloDnevnihUr","v":""}]
[null,{"$f":"UrnikDan","v":""},{"$f":"SkupnoŠteviloDnevnihUr","v":""}]
[null,{"$f":"UrnikDan","v":""},{"$f":"SkupnoŠteviloDnevnihUr","v":""}]
[null,{"$f":"UrnikDan","v":""},{"$f":"SkupnoŠteviloDnevnihUr","v":""}]
[null,{"$f":"UrnikDan","v":""},{"$f":"SkupnoŠteviloDnevnihUr","v":""}]
[null,{"$f":"UrnikDan","v":""},{"$f":"SkupnoŠteviloDnevnihUr","v":""}]
[null,{"$f":"UrnikDan","v":""},{"$f":"SkupnoŠteviloDnevnihUr","v":""}]
[null,{"$f":"UrnikDan","v":""},{"$f":"SkupnoŠteviloDnevnihUr","v":""}]
[null,{"$f":"UrnikDan","v":""},{"$f":"SkupnoŠteviloDnevnihUr","v":""}]
[null,{"$f":"UrnikDan","v":""},{"$f":"SkupnoŠteviloDnevnihUr","v":""}]
[null,{"$f":"UrnikDan","v":""},{"$f":"SkupnoŠteviloDnevnihUr","v":""}]
[null,{"$f":"UrnikDan","v":""},{"$f":"SkupnoŠteviloDnevnihUr","v":""}]
[null,{"$f":"UrnikDan","v":""},{"$f":"SkupnoŠteviloDnevnihUr","v":""}]
[null,{"$f":"UrnikDan","v":""},{"$f":"SkupnoŠteviloDnevnihUr","v":""}]
[null,{"$f":"UrnikDan","v":""},{"$f":"SkupnoŠteviloDnevnihUr","v":""}]
[null,{"$f":"UrnikDan","v":""},{"$f":"SkupnoŠteviloDnevnihUr","v":""}]
[null,{"$f":"UrnikDan","v":""},{"$f":"SkupnoŠteviloDnevnihUr","v":""}]
[null,{"$f":"UrnikDan","v":""},{"$f":"SkupnoŠteviloDnevnihUr","v":""}]
[null,{"$f":"UrnikDan","v":""},{"$f":"SkupnoŠteviloDnevnihUr","v":""}]
[null,{"$f":"UrnikDan","v":""},{"$f":"SkupnoŠteviloDnevnihUr","v":""}]
[null,{"$f":"UrnikDan","v":""},{"$f":"SkupnoŠteviloDnevnihUr","v":""}]
[null,{"$f":"UrnikDan","v":""},{"$f":"SkupnoŠteviloDnevnihUr","v":""}]
[null,{"$f":"UrnikDan","v":""},{"$f":"SkupnoŠteviloDnevnihUr","v":""}]
[null,{"$f":"UrnikDan","v":""},{"$f":"SkupnoŠteviloDnevnihUr","v":""}]
[null,{"$f":"UrnikDan","v":""},{"$f":"SkupnoŠteviloDnevnihUr","v":""}]
[null,{"$f":"UrnikDan","v":""},{"$f":"SkupnoŠteviloDnevnihUr","v":""}]
[null,{"$f":"UrnikDan","v":""},{"$f":"SkupnoŠteviloDnevnihUr","v":""}]
[null,{"$f":"UrnikDan","v":""},{"$f":"SkupnoŠteviloDnevnihUr","v":""}]
[null,{"$f":"UrnikDan","v":""},{"$f":"SkupnoŠteviloDnevnihUr","v":""}]
[null,{"$f":"UrnikDan","v":""},{"$f":"SkupnoŠteviloDnevnihUr","v":""}]
[null,{"$f":"UrnikDan","v":""},{"$f":"SkupnoŠteviloDnevnihUr","v":""}]
[null,{"$f":"UrnikDan","v":""},{"$f":"SkupnoŠteviloDnevnihUr","v":""}]
[null,{"$f":"UrnikDan","v":""},{"$f":"SkupnoŠteviloDnevnihUr","v":""}]
[null,{"$f":"UrnikDan","v":""},{"$f":"SkupnoŠteviloDnevnihUr","v":""}]
[null,{"$f":"UrnikDan","v":""},{"$f":"SkupnoŠteviloDnevnihUr","v":""}]
[null,{"$f":"UrnikDan","v":""},{"$f":"SkupnoŠteviloDnevnihUr","v":""}]
[null,{"$f":"UrnikDan","v":""},{"$f":"SkupnoŠteviloDnevnihUr","v":""}]
[null,{"$f":"UrnikDan","v":""},{"$f":"SkupnoŠteviloDnevnihUr","v":""}]
[null,{"$f":"UrnikDan","v":""},{"$f":"SkupnoŠteviloDnevnihUr","v":""}]
[null,{"$f":"UrnikDan","v":""},{"$f":"SkupnoŠteviloDnevnihUr","v":""}]
[null,{"$f":"UrnikDan","v":""},{"$f":"SkupnoŠteviloDnevnihUr","v":""}]
[null,{"$f":"UrnikDan","v":""},{"$f":"SkupnoŠteviloDnevnihUr","v":""}]
[null,{"$f":"UrnikDan","v":""},{"$f":"SkupnoŠteviloDnevnihUr","v":""}]
[null,{"$f":"UrnikDan","v":""},{"$f":"SkupnoŠteviloDnevnihUr","v":""}]
[null,{"$f":"UrnikDan","v":""},{"$f":"SkupnoŠteviloDnevnihUr","v":""}]
[null,{"$f":"UrnikDan","v":""},{"$f":"SkupnoŠteviloDnevnihUr","v":""}]
[null,{"$f":"UrnikDan","v":""},{"$f":"SkupnoŠteviloDnevnihUr","v":""}]
[null,{"$f":"UrnikDan","v":""},{"$f":"SkupnoŠteviloDnevnihUr","v":""}]